[Event "*** Titled Tuesday 3|2 Blitz"]
[Site "Chess.com"]
[Date "2016.01.05"]
[Round "1"]
[White "mateueasily"]
[Black "Alliswell998"]
[Result "1-0"]
[WhiteElo "2335"]
[BlackElo "2064"]
[TimeControl "180+2"]
[EndTime "17:07:07 PST"]
[Termination "mateueasily won by checkmate"]

1. e4 {[%clk 0:02:43.9]} 1... c5 {[%clk 0:03:00]} 2. c3 {[%clk 0:02:44.3]} 2...
d5 {[%clk 0:03:00.1]} 3. exd5 {[%clk 0:02:45.1]} 3... Nf6 {[%clk 0:03:01.1]} 4.
d4 {[%clk 0:02:47]} 4... Nxd5 {[%clk 0:02:58.7]} 5. dxc5 {[%clk 0:02:47]} 5...
e6 {[%clk 0:02:55.8]} 6. c4 {[%clk 0:02:40.1]} 6... Nb4 {[%clk 0:02:56.3]} 7.
Qxd8+ {[%clk 0:02:40.6]} 7... Kxd8 {[%clk 0:02:58.2]} 8. Na3 {[%clk 0:02:41.7]}
8... Bxc5 {[%clk 0:02:50.6]} 9. Bg5+ {[%clk 0:02:41.9]} 9... f6 {[%clk
0:02:47.6]} 10. O-O-O+ {[%clk 0:02:35.6]} 10... Ke7 {[%clk 0:02:41]} 11. Nb5
{[%clk 0:02:26.7]} 11... fxg5 {[%clk 0:02:29.2]} 12. Nc7 {[%clk 0:02:26.8]}
12... N8a6 {[%clk 0:02:28.2]} 13. Nxa8 {[%clk 0:02:27.3]} 13... Bd7 {[%clk
0:02:28.3]} 14. a3 {[%clk 0:02:25.2]} 14... Nc6 {[%clk 0:02:12.8]} 15. b4 {[%clk
0:02:24.8]} 15... Ncxb4 {[%clk 0:02:13.5]} 16. axb4 {[%clk 0:02:24.9]} 16...
Bxb4 {[%clk 0:02:15.4]} 17. Nf3 {[%clk 0:02:25.1]} 17... Rxa8 {[%clk 0:02:13.2]}
18. Bd3 {[%clk 0:02:25.9]} 18... h6 {[%clk 0:02:09.7]} 19. Bc2 {[%clk
0:02:20.5]} 19... Bc3 {[%clk 0:02:05.1]} 20. Rd3 {[%clk 0:02:18.8]} 20... Bf6
{[%clk 0:02:00.9]} 21. Rhd1 {[%clk 0:02:14.1]} 21... Nc5 {[%clk 0:02:01.7]} 22.
Re3 {[%clk 0:02:14.4]} 22... b6 {[%clk 0:01:58.3]} 23. Nd4 {[%clk 0:02:11]}
23... Kf7 {[%clk 0:01:49.5]} 24. Nb5 {[%clk 0:02:04.7]} 24... Bc6 {[%clk
0:01:39]} 25. f3 {[%clk 0:01:52.6]} 25... g4 {[%clk 0:01:38.6]} 26. Nd6+ {[%clk
0:01:47.5]} 26... Kf8 {[%clk 0:01:36.6]} 27. Ra3 {[%clk 0:01:46.7]} 27... a5
{[%clk 0:01:32.4]} 28. Ne4 {[%clk 0:01:46.2]} 28... gxf3 {[%clk 0:01:25.8]} 29.
gxf3 {[%clk 0:01:39.9]} 29... Be5 {[%clk 0:01:20.5]} 30. Nxc5 {[%clk 0:01:34.3]}
30... Bf4+ {[%clk 0:01:16.7]} 31. Kb1 {[%clk 0:01:33.1]} 31... bxc5 {[%clk
0:01:18.6]} 32. Be4 {[%clk 0:01:33.5]} 32... Rb8+ {[%clk 0:01:13.8]} 33. Kc2
{[%clk 0:01:33.7]} 33... Bxe4+ {[%clk 0:01:09.3]} 34. fxe4 {[%clk 0:01:33.3]}
34... Rb4 {[%clk 0:01:11.2]} 35. Rxa5 {[%clk 0:01:30.4]} 35... Rxc4+ {[%clk
0:01:10.6]} 36. Kb3 {[%clk 0:01:31.4]} 36... Rb4+ {[%clk 0:01:10.1]} 37. Ka3
{[%clk 0:01:32.5]} 37... Rxe4 {[%clk 0:01:10.2]} 38. Rd7 {[%clk 0:01:29.6]}
38... Bc1+ {[%clk 0:01:08.2]} 39. Kb3 {[%clk 0:01:30]} 39... Re3+ {[%clk
0:01:08.1]} 40. Kc2 {[%clk 0:01:30.9]} 40... Re1 {[%clk 0:01:04.9]} 41. Ra8#
{[%clk 0:01:29.6]} 1-0

[Event "*** Titled Tuesday 3|2 Blitz"]
[Site "Chess.com"]
[Date "2016.01.05"]
[Round "1"]
[White "Assasin14"]
[Black "Er_is_geen_hoop_meer"]
[Result "0-1"]
[WhiteElo "1949"]
[BlackElo "2313"]
[TimeControl "180+2"]
[EndTime "17:07:08 PST"]
[Termination "Er_is_geen_hoop_meer won by resignation"]

1. e4 {[%clk 0:03:01.9]} 1... c5 {[%clk 0:02:55.4]} 2. Nf3 {[%clk 0:03:02.3]}
2... e6 {[%clk 0:02:56.3]} 3. Nc3 {[%clk 0:03:01.5]} 3... Nc6 {[%clk 0:02:54.3]}
4. d4 {[%clk 0:03:00.8]} 4... cxd4 {[%clk 0:02:56.2]} 5. Nxd4 {[%clk 0:03:02.7]}
5... Qc7 {[%clk 0:02:57.5]} 6. g3 {[%clk 0:03:03.5]} 6... Nf6 {[%clk 0:02:56.8]}
7. Bg2 {[%clk 0:03:03.2]} 7... h5 {[%clk 0:02:56.9]} 8. O-O {[%clk 0:02:57.1]}
8... Nxd4 {[%clk 0:02:57.2]} 9. Qxd4 {[%clk 0:02:56.8]} 9... Bc5 {[%clk
0:02:59.1]} 10. Qd3 {[%clk 0:02:54.3]} 10... a6 {[%clk 0:02:58.2]} 11. Bf4
{[%clk 0:02:53.8]} 11... d6 {[%clk 0:02:43.3]} 12. Rad1 {[%clk 0:02:49.5]} 12...
Ke7 {[%clk 0:02:33.1]} 13. a3 {[%clk 0:02:30.4]} 13... Rd8 {[%clk 0:02:25.3]}
14. b4 {[%clk 0:02:31.1]} 14... Ba7 {[%clk 0:02:24.8]} 15. Ne2 {[%clk
0:02:04.8]} 15... Ng4 {[%clk 0:02:21.9]} 16. c4 {[%clk 0:01:48.9]} 16... e5
{[%clk 0:02:17]} 17. Bg5+ {[%clk 0:01:40.9]} 17... f6 {[%clk 0:02:17.1]} 18. Bd2
{[%clk 0:01:32.4]} 18... Be6 {[%clk 0:02:19]} 19. Rc1 {[%clk 0:01:32.5]} 19...
Rac8 {[%clk 0:02:19.3]} 20. Nc3 {[%clk 0:00:47.4]} 20... Qxc4 {[%clk 0:02:01.3]}
21. Nd5+ {[%clk 0:00:45]} 21... Bxd5 {[%clk 0:02:02.1]} 22. Rxc4 {[%clk
0:00:34.6]} 22... Bxc4 {[%clk 0:02:04]} 23. Qf3 {[%clk 0:00:32.9]} 23... Bxf1
{[%clk 0:02:03.2]} 24. Bxf1 {[%clk 0:00:34.8]} 24... Nxf2 {[%clk 0:02:00.6]} 25.
Kg2 {[%clk 0:00:35.1]} 25... Rc2 {[%clk 0:02:00.4]} 26. Qe2 {[%clk 0:00:21.3]}
26... Nxe4 {[%clk 0:01:59.3]} 27. Qxe4 {[%clk 0:00:20.5]} 27... Rxd2+ {[%clk
0:02:00.4]} 28. Kh3 {[%clk 0:00:22]} 28... Bg1 {[%clk 0:01:59.3]} 29. Qxb7+
{[%clk 0:00:21.7]} 29... Rd7 {[%clk 0:01:59.7]} 30. Qh1 {[%clk 0:00:10.4]} 30...
Rxh2+ {[%clk 0:02:01.6]} 31. Qxh2 {[%clk 0:00:12.3]} 31... Bxh2 {[%clk
0:02:03.5]} 32. Kxh2 {[%clk 0:00:14.2]} 32... Ra7 {[%clk 0:02:02.1]} 33. a4
{[%clk 0:00:14.5]} 33... d5 {[%clk 0:02:02.8]} 34. Kg2 {[%clk 0:00:15.4]} 34...
Kd6 {[%clk 0:02:03.4]} 35. Kf2 {[%clk 0:00:16.1]} 35... f5 {[%clk 0:02:04.6]}
36. Ke3 {[%clk 0:00:17.2]} 36... g5 {[%clk 0:02:05.6]} 37. Be2 {[%clk
0:00:17.4]} 37... h4 {[%clk 0:02:05.9]} 38. gxh4 {[%clk 0:00:18.2]} 38... f4+
{[%clk 0:02:07.2]} 39. Kf2 {[%clk 0:00:20.1]} 39... gxh4 {[%clk 0:02:07.7]} 40.
Kg2 {[%clk 0:00:21.4]} 40... e4 {[%clk 0:02:08.8]} 41. Kh3 {[%clk 0:00:22.4]}
41... f3 {[%clk 0:02:10.7]} 42. Bf1 {[%clk 0:00:23.6]} 42... d4 {[%clk
0:02:11.6]} 43. Kxh4 {[%clk 0:00:24.7]} 43... d3 {[%clk 0:02:13.5]} 44. Kg3
{[%clk 0:00:25.5]} 44... d2 {[%clk 0:02:15]} 45. b5 {[%clk 0:00:26.8]} 45...
d1=Q {[%clk 0:02:13.1]} 46. b6 {[%clk 0:00:28.7]} 46... Qe1+ {[%clk 0:02:13.8]}
47. Kf4 {[%clk 0:00:29.2]} 47... Rf7+ {[%clk 0:02:15.4]} 48. Kg5 {[%clk
0:00:29.9]} 48... Qg3+ {[%clk 0:02:16.7]} 0-1

[Event "*** Titled Tuesday 3|2 Blitz"]
[Site "Chess.com"]
[Date "2016.01.05"]
[Round "1"]
[White "oskariot"]
[Black "Carolina-moon"]
[Result "1-0"]
[WhiteElo "2328"]
[BlackElo "2011"]
[TimeControl "180+2"]
[EndTime "17:07:38 PST"]
[Termination "oskariot won by resignation"]

1. e4 {[%clk 0:02:37.1]} 1... c5 {[%clk 0:02:59.9]} 2. Nf3 {[%clk 0:02:36.1]}
2... d6 {[%clk 0:03:00.8]} 3. d4 {[%clk 0:02:37.4]} 3... Nf6 {[%clk 0:03:01.2]}
4. Nc3 {[%clk 0:02:38.1]} 4... cxd4 {[%clk 0:03:02.1]} 5. Nxd4 {[%clk
0:02:27.4]} 5... a6 {[%clk 0:03:04]} 6. f4 {[%clk 0:02:27.8]} 6... e5 {[%clk
0:03:03.4]} 7. Nf3 {[%clk 0:02:28.9]} 7... Nbd7 {[%clk 0:03:03]} 8. a4 {[%clk
0:02:30.2]} 8... Be7 {[%clk 0:03:01.7]} 9. Bd3 {[%clk 0:02:31.1]} 9... O-O
{[%clk 0:03:01.9]} 10. O-O {[%clk 0:02:32.7]} 10... exf4 {[%clk 0:02:51.5]} 11.
Bxf4 {[%clk 0:02:33.4]} 11... Qb6+ {[%clk 0:02:51.5]} 12. Kh1 {[%clk 0:02:34.7]}
12... Qxb2 {[%clk 0:02:52.3]} 13. Qe1 {[%clk 0:02:35.9]} 13... Qb6 {[%clk
0:02:47.8]} 14. Bg5 {[%clk 0:02:36]} 14... Qc5 {[%clk 0:02:42.6]} 15. Nd5 {[%clk
0:02:16.7]} 15... Nxd5 {[%clk 0:02:38.2]} 16. exd5 {[%clk 0:02:16]} 16... Bxg5
{[%clk 0:02:31.4]} 17. Bxh7+ {[%clk 0:01:40.8]} 17... Kxh7 {[%clk 0:02:25]} 18.
Nxg5+ {[%clk 0:01:41.8]} 18... Kg6 {[%clk 0:02:14.6]} 19. Qh4 {[%clk 0:01:17]}
19... Nf6 {[%clk 0:01:33.3]} 20. Rxf6+ {[%clk 0:01:10]} 20... gxf6 {[%clk
0:01:15.4]} 21. Qh7+ {[%clk 0:01:03.8]} 21... Kxg5 {[%clk 0:01:15.1]} 22. Qg7+
{[%clk 0:01:05]} 22... Kf5 {[%clk 0:01:08]} 23. Rf1+ {[%clk 0:00:53.2]} 23...
Ke5 {[%clk 0:01:07.3]} 24. Qxf8 {[%clk 0:00:46.3]} 24... Qxd5 {[%clk 0:00:49.6]}
25. Qh8 {[%clk 0:00:32.9]} 25... Bf5 {[%clk 0:00:35.4]} 26. Qxa8 {[%clk
0:00:27.4]} 26... Be4 {[%clk 0:00:31.3]} 27. Qe8+ {[%clk 0:00:27.4]} 27... Kd4
{[%clk 0:00:32.7]} 28. Rd1+ {[%clk 0:00:27.8]} 1-0

[Event "*** Titled Tuesday 3|2 Blitz"]
[Site "Chess.com"]
[Date "2016.01.05"]
[Round "1"]
[White "wonderfultime"]
[Black "jcgs1030"]
[Result "1-0"]
[WhiteElo "2620"]
[BlackElo "2197"]
[TimeControl "180+2"]
[EndTime "17:08:04 PST"]
[Termination "wonderfultime won by resignation"]

1. d4 {[%clk 0:03:01.9]} 1... Nf6 {[%clk 0:02:58.5]} 2. c4 {[%clk 0:02:55]} 2...
g6 {[%clk 0:02:56.1]} 3. Nc3 {[%clk 0:02:55.5]} 3... d5 {[%clk 0:02:56.6]} 4.
Bg5 {[%clk 0:02:56.7]} 4... Ne4 {[%clk 0:02:57.1]} 5. Bh4 {[%clk 0:02:54.2]}
5... Nxc3 {[%clk 0:02:57.4]} 6. bxc3 {[%clk 0:02:56.1]} 6... Bg7 {[%clk
0:02:58.7]} 7. e3 {[%clk 0:02:56.8]} 7... O-O {[%clk 0:02:59.1]} 8. Nf3 {[%clk
0:02:58.1]} 8... Be6 {[%clk 0:02:55]} 9. cxd5 {[%clk 0:02:48.9]} 9... Bxd5
{[%clk 0:02:54]} 10. Bd3 {[%clk 0:02:45.1]} 10... c5 {[%clk 0:02:54.1]} 11. O-O
{[%clk 0:02:46.1]} 11... Nc6 {[%clk 0:02:53.2]} 12. Qe2 {[%clk 0:02:45.9]} 12...
Bxf3 {[%clk 0:02:41.8]} 13. Qxf3 {[%clk 0:02:45.8]} 13... Qa5 {[%clk 0:02:43.7]}
14. Rfc1 {[%clk 0:02:41.1]} 14... Rac8 {[%clk 0:02:28.8]} 15. h3 {[%clk
0:02:27.8]} 15... Rfe8 {[%clk 0:02:25]} 16. Be4 {[%clk 0:01:44.5]} 16... Qa6
{[%clk 0:01:36.2]} 17. Rab1 {[%clk 0:01:37.5]} 17... e6 {[%clk 0:01:31.7]} 18.
Bg3 {[%clk 0:01:10.4]} 18... f5 {[%clk 0:01:14.3]} 19. Bc2 {[%clk 0:01:10.1]}
19... Na5 {[%clk 0:01:07.9]} 20. Ba4 {[%clk 0:01:09]} 20... Nc6 {[%clk
0:00:39.6]} 21. Qd1 {[%clk 0:00:34.2]} 21... b6 {[%clk 0:00:28.8]} 22. Qb3
{[%clk 0:00:27.2]} 22... Kh8 {[%clk 0:00:26.6]} 23. Bb5 {[%clk 0:00:26.4]} 23...
Qb7 {[%clk 0:00:26.4]} 24. dxc5 {[%clk 0:00:19.8]} 24... bxc5 {[%clk 0:00:23.2]}
25. Ba4 {[%clk 0:00:21.2]} 25... Qxb3 {[%clk 0:00:21.4]} 26. Rxb3 {[%clk
0:00:23.1]} 26... e5 {[%clk 0:00:21.7]} 27. Rb7 {[%clk 0:00:22.8]} 27... a6
{[%clk 0:00:17.5]} 28. Rcb1 {[%clk 0:00:17.3]} 28... Re6 {[%clk 0:00:17.1]} 29.
R1b6 {[%clk 0:00:18]} 29... Nd8 {[%clk 0:00:17]} 30. Rxe6 {[%clk 0:00:17.9]}
30... Nxe6 {[%clk 0:00:18.9]} 31. Bd7 {[%clk 0:00:18.3]} 31... Rc7 {[%clk
0:00:20.5]} 32. Rb8+ {[%clk 0:00:18.7]} 32... Nf8 {[%clk 0:00:22.4]} 33. Rxf8+
{[%clk 0:00:20]} 33... Bxf8 {[%clk 0:00:23.1]} 34. Bxe5+ {[%clk 0:00:21.8]}
34... Kg8 {[%clk 0:00:22.7]} 35. Bxc7 {[%clk 0:00:23.4]} 35... Kf7 {[%clk
0:00:24.5]} 36. Bc8 {[%clk 0:00:24.4]} 1-0

[Event "*** Titled Tuesday 3|2 Blitz"]
[Site "Chess.com"]
[Date "2016.01.05"]
[Round "1"]
[White "AdrianaNikolova"]
[Black "MinhGTrAn"]
[Result "0-1"]
[WhiteElo "2157"]
[BlackElo "2554"]
[TimeControl "180+2"]
[EndTime "17:08:14 PST"]
[Termination "MinhGTrAn won by resignation"]

1. e4 {[%clk 0:01:59.7]} 1... c5 {[%clk 0:03:00.3]} 2. Nf3 {[%clk 0:01:58.4]}
2... d6 {[%clk 0:03:01]} 3. d4 {[%clk 0:01:57.8]} 3... cxd4 {[%clk 0:03:02.9]}
4. Nxd4 {[%clk 0:01:59.5]} 4... Nf6 {[%clk 0:03:04.5]} 5. Nc3 {[%clk 0:02:00.6]}
5... a6 {[%clk 0:03:06.1]} 6. Bg5 {[%clk 0:02:01.7]} 6... e6 {[%clk 0:03:07.5]}
7. f4 {[%clk 0:01:59.9]} 7... Be7 {[%clk 0:03:09]} 8. Qf3 {[%clk 0:01:59.6]}
8... Nbd7 {[%clk 0:03:09.8]} 9. O-O-O {[%clk 0:02:01]} 9... Qc7 {[%clk
0:03:10.8]} 10. g4 {[%clk 0:02:02.4]} 10... h6 {[%clk 0:03:11.6]} 11. Bxf6
{[%clk 0:02:02.1]} 11... Bxf6 {[%clk 0:03:13.5]} 12. Kb1 {[%clk 0:02:01.3]}
12... Qb6 {[%clk 0:03:09.4]} 13. Na4 {[%clk 0:01:49.4]} 13... Qb4 {[%clk
0:03:02.4]} 14. Qb3 {[%clk 0:01:22.8]} 14... Qxb3 {[%clk 0:02:41.7]} 15. axb3
{[%clk 0:01:24.7]} 15... g5 {[%clk 0:02:40.6]} 16. f5 {[%clk 0:01:25.2]} 16...
b5 {[%clk 0:02:29]} 17. fxe6 {[%clk 0:01:25.4]} 17... fxe6 {[%clk 0:02:23.1]}
18. Nxe6 {[%clk 0:01:13.1]} 18... Kf7 {[%clk 0:02:01.2]} 19. Nc7 {[%clk
0:01:13.8]} 19... Ra7 {[%clk 0:02:02.7]} 20. Nd5 {[%clk 0:01:12.4]} 20... bxa4
{[%clk 0:02:02.4]} 21. Nxf6 {[%clk 0:01:12.8]} 21... Nxf6 {[%clk 0:02:02.3]} 22.
Bc4+ {[%clk 0:01:14.3]} 22... Ke7 {[%clk 0:02:02.8]} 23. bxa4 {[%clk 0:01:14.7]}
23... Bxg4 {[%clk 0:02:02.1]} 24. Rde1 {[%clk 0:01:10]} 24... Be6 {[%clk
0:01:57.8]} 25. Bd3 {[%clk 0:01:04.9]} 25... Nd7 {[%clk 0:01:54]} 26. b4 {[%clk
0:01:00]} 26... Ne5 {[%clk 0:01:50.4]} 27. Be2 {[%clk 0:00:55.1]} 27... Rb8
{[%clk 0:01:40.4]} 28. c3 {[%clk 0:00:51.8]} 28... Rc7 {[%clk 0:01:41.9]} 29.
Kb2 {[%clk 0:00:50.2]} 29... a5 {[%clk 0:01:43]} 30. b5 {[%clk 0:00:45.8]} 30...
Bc4 {[%clk 0:01:44.4]} 31. Bxc4 {[%clk 0:00:39]} 31... Rxc4 {[%clk 0:01:46.3]}
32. Kb3 {[%clk 0:00:40.2]} 32... Rbc8 {[%clk 0:01:46.3]} 33. Re3 {[%clk
0:00:41.7]} 33... Rf8 {[%clk 0:01:36.1]} 34. h4 {[%clk 0:00:42.2]} 34... g4
{[%clk 0:01:36.7]} 35. Rd1 {[%clk 0:00:36.5]} 35... Rf3 {[%clk 0:01:37.1]} 36.
Rde1 {[%clk 0:00:26.4]} 36... Rc8 {[%clk 0:01:34.4]} 37. Kc2 {[%clk 0:00:26.9]}
37... Rcf8 {[%clk 0:01:30.7]} 38. R3e2 {[%clk 0:00:25.3]} 38... Kd7 {[%clk
0:01:30.2]} 39. Kb3 {[%clk 0:00:25.7]} 39... Kc7 {[%clk 0:01:31.5]} 40. Rd2
{[%clk 0:00:26.4]} 40... Nd3 {[%clk 0:01:30.1]} 41. Red1 {[%clk 0:00:26]} 41...
Nc5+ {[%clk 0:01:32]} 42. Kc4 {[%clk 0:00:25.1]} 42... Nxe4 {[%clk 0:01:31.6]}
43. Rd5 {[%clk 0:00:20.6]} 43... Nxc3 {[%clk 0:01:24.8]} 44. b6+ {[%clk
0:00:21.5]} 44... Kb7 {[%clk 0:01:26.2]} 45. Rxd6 {[%clk 0:00:22.8]} 45... Nxd1
{[%clk 0:01:27]} 46. Rxd1 {[%clk 0:00:24.7]} 46... Kxb6 {[%clk 0:01:27.5]} 47.
Rd6+ {[%clk 0:00:25.9]} 47... Kc7 {[%clk 0:01:28.7]} 48. Rxh6 {[%clk 0:00:27.8]}
48... g3 {[%clk 0:01:24]} 49. Rh7+ {[%clk 0:00:28.1]} 49... R8f7 {[%clk
0:01:24.7]} 50. Rh6 {[%clk 0:00:30]} 50... R3f4+ {[%clk 0:01:23]} 51. Kb3 {[%clk
0:00:28.2]} 51... Rg4 {[%clk 0:01:23.6]} 0-1

[Event "*** Titled Tuesday 3|2 Blitz"]
[Site "Chess.com"]
[Date "2016.01.05"]
[Round "1"]
[White "eltenedor"]
[Black "chessdude"]
[Result "0-1"]
[WhiteElo "2007"]
[BlackElo "2327"]
[TimeControl "180+2"]
[EndTime "17:08:35 PST"]
[Termination "chessdude won by resignation"]

1. c4 {[%clk 0:02:55.3]} 1... Nf6 {[%clk 0:02:49]} 2. g3 {[%clk 0:02:50.9]} 2...
e6 {[%clk 0:02:49.1]} 3. Bg2 {[%clk 0:02:49.8]} 3... d5 {[%clk 0:02:50.5]} 4. d4
{[%clk 0:02:50.3]} 4... Bb4+ {[%clk 0:02:48.4]} 5. Bd2 {[%clk 0:02:49.9]} 5...
Be7 {[%clk 0:02:47.8]} 6. Qc2 {[%clk 0:02:44.8]} 6... O-O {[%clk 0:02:44.9]} 7.
Nf3 {[%clk 0:02:45.2]} 7... c6 {[%clk 0:02:45.6]} 8. O-O {[%clk 0:02:45.2]} 8...
Nbd7 {[%clk 0:02:46.7]} 9. Bf4 {[%clk 0:02:39.7]} 9... b6 {[%clk 0:02:27.2]} 10.
Nbd2 {[%clk 0:02:32.5]} 10... Nh5 {[%clk 0:02:20.3]} 11. Be3 {[%clk 0:02:16.5]}
11... Bb7 {[%clk 0:02:18.4]} 12. Rfd1 {[%clk 0:02:05.7]} 12... Rc8 {[%clk
0:02:13.8]} 13. Ne5 {[%clk 0:02:06]} 13... Nhf6 {[%clk 0:02:06.3]} 14. Bf4
{[%clk 0:01:54.4]} 14... c5 {[%clk 0:02:05.3]} 15. dxc5 {[%clk 0:01:50.5]} 15...
Nxe5 {[%clk 0:01:53.7]} 16. Bxe5 {[%clk 0:01:49.4]} 16... Bxc5 {[%clk
0:01:54.6]} 17. e3 {[%clk 0:01:33.5]} 17... Qe7 {[%clk 0:01:51.2]} 18. Qb3
{[%clk 0:01:24.6]} 18... dxc4 {[%clk 0:01:47.4]} 19. Nxc4 {[%clk 0:01:24.8]}
19... Bxg2 {[%clk 0:01:48.1]} 20. Kxg2 {[%clk 0:01:26.4]} 20... Qb7+ {[%clk
0:01:46.2]} 21. f3 {[%clk 0:01:24.1]} 21... Ng4 {[%clk 0:01:37.1]} 22. Bf4
{[%clk 0:01:09.8]} 22... Nf6 {[%clk 0:01:26.8]} 23. Nd6 {[%clk 0:01:07.4]} 23...
Bxd6 {[%clk 0:01:24.8]} 24. Bxd6 {[%clk 0:01:07.3]} 24... Rfd8 {[%clk
0:01:24.6]} 25. e4 {[%clk 0:01:07.3]} 25... Qc6 {[%clk 0:01:23.3]} 26. e5 {[%clk
0:00:58.7]} 26... Nd5 {[%clk 0:01:22.5]} 27. Rd2 {[%clk 0:00:52.9]} 27... h5
{[%clk 0:01:21.4]} 28. Rad1 {[%clk 0:00:51.2]} 28... h4 {[%clk 0:01:22.2]} 29.
Qd3 {[%clk 0:00:47.4]} 29... Qc4 {[%clk 0:01:22.3]} 30. Qe2 {[%clk 0:00:44.1]}
30... Qxe2+ {[%clk 0:01:21.7]} 31. Rxe2 {[%clk 0:00:44.8]} 31... Rc4 {[%clk
0:01:23.1]} 32. f4 {[%clk 0:00:43.5]} 32... Rdc8 {[%clk 0:01:19.5]} 33. Rdd2
{[%clk 0:00:43.2]} 33... g6 {[%clk 0:01:15.7]} 34. b3 {[%clk 0:00:40.9]} 34...
Rc1 {[%clk 0:01:15.6]} 35. Kf3 {[%clk 0:00:38.2]} 35... Kg7 {[%clk 0:01:02.6]}
36. Kg4 {[%clk 0:00:36.3]} 36... hxg3 {[%clk 0:01:03.4]} 37. hxg3 {[%clk
0:00:37.3]} 37... Rf1 {[%clk 0:00:58.2]} 38. Kh3 {[%clk 0:00:28.3]} 38... Rh8+
{[%clk 0:00:58.2]} 39. Kg2 {[%clk 0:00:28.8]} 39... Rhh1 {[%clk 0:00:54.4]} 40.
Ba3 {[%clk 0:00:23.4]} 40... Nc3 {[%clk 0:00:49.5]} 41. Re3 {[%clk 0:00:17.4]}
41... Nb1 {[%clk 0:00:48.7]} 42. Bb4 {[%clk 0:00:15.8]} 42... Nxd2 {[%clk
0:00:47.1]} 43. Bxd2 {[%clk 0:00:17.1]} 43... a5 {[%clk 0:00:45.2]} 44. Re2
{[%clk 0:00:16.1]} 44... Rfg1+ {[%clk 0:00:43.4]} 45. Kf2 {[%clk 0:00:16.1]}
45... Rh2+ {[%clk 0:00:44.2]} 46. Kxg1 {[%clk 0:00:16.2]} 46... Rxe2 {[%clk
0:00:45.2]} 0-1

[Event "*** Titled Tuesday 3|2 Blitz"]
[Site "Chess.com"]
[Date "2016.01.05"]
[Round "1"]
[White "aNONoNonono"]
[Black "GrigorGrigorov"]
[Result "0-1"]
[WhiteElo "2157"]
[BlackElo "2506"]
[TimeControl "180+2"]
[EndTime "17:08:55 PST"]
[Termination "GrigorGrigorov won by resignation"]

1. e4 {[%clk 0:03:01.5]} 1... g6 {[%clk 0:02:58.3]} 2. d4 {[%clk 0:03:01.7]}
2... Bg7 {[%clk 0:02:58.8]} 3. Nf3 {[%clk 0:03:01]} 3... d6 {[%clk 0:02:59.2]}
4. Be2 {[%clk 0:02:58.4]} 4... Nf6 {[%clk 0:02:59.4]} 5. Nbd2 {[%clk 0:02:55.8]}
5... O-O {[%clk 0:02:58.8]} 6. O-O {[%clk 0:02:56]} 6... e5 {[%clk 0:02:55.3]}
7. dxe5 {[%clk 0:02:52.4]} 7... dxe5 {[%clk 0:02:55.6]} 8. Nxe5 {[%clk
0:02:52.6]} 8... Re8 {[%clk 0:02:40.6]} 9. Nef3 {[%clk 0:02:50.6]} 9... Nc6
{[%clk 0:02:30.5]} 10. Re1 {[%clk 0:02:28.8]} 10... Nxe4 {[%clk 0:02:23.7]} 11.
Nxe4 {[%clk 0:02:28.8]} 11... Rxe4 {[%clk 0:02:24.4]} 12. Qxd8+ {[%clk 0:02:28]}
12... Nxd8 {[%clk 0:02:24.6]} 13. c3 {[%clk 0:02:23.4]} 13... Nc6 {[%clk
0:02:23]} 14. Bg5 {[%clk 0:02:22.6]} 14... h6 {[%clk 0:02:14.3]} 15. Bh4 {[%clk
0:02:16.6]} 15... Bg4 {[%clk 0:02:09.7]} 16. Bg3 {[%clk 0:02:11]} 16... Rae8
{[%clk 0:02:08.5]} 17. Bd3 {[%clk 0:02:02.7]} 17... Rxe1+ {[%clk 0:02:02.1]} 18.
Rxe1 {[%clk 0:02:03]} 18... Rxe1+ {[%clk 0:01:56.1]} 19. Nxe1 {[%clk 0:02:03.6]}
19... Ne5 {[%clk 0:01:57.7]} 20. Be4 {[%clk 0:02:01.6]} 20... c6 {[%clk
0:01:58.4]} 21. Nf3 {[%clk 0:02:00.9]} 21... Nc4 {[%clk 0:01:49.4]} 22. b3
{[%clk 0:01:58.2]} 22... Bxf3 {[%clk 0:01:30.5]} 23. Bxf3 {[%clk 0:01:51.4]}
23... Nd2 {[%clk 0:01:30.3]} 24. c4 {[%clk 0:01:45.8]} 24... Nxf3+ {[%clk
0:01:29]} 25. gxf3 {[%clk 0:01:46.4]} 25... f5 {[%clk 0:01:29.8]} 26. Kf1 {[%clk
0:01:43.7]} 26... Kf7 {[%clk 0:01:29.9]} 27. Ke2 {[%clk 0:01:44.8]} 27... g5
{[%clk 0:01:28.4]} 28. Bb8 {[%clk 0:01:44.8]} 28... a6 {[%clk 0:01:28.7]} 29.
Kd3 {[%clk 0:01:46.5]} 29... Ke6 {[%clk 0:01:28.4]} 30. h3 {[%clk 0:01:46.1]}
30... Be5 {[%clk 0:01:25.3]} 31. Ba7 {[%clk 0:01:42.3]} 31... Kf6 {[%clk
0:01:26.7]} 32. Be3 {[%clk 0:01:41.3]} 32... Kg6 {[%clk 0:01:26.8]} 33. Bd4
{[%clk 0:01:39.8]} 33... Bc7 {[%clk 0:01:24]} 34. Bc3 {[%clk 0:01:35.9]} 34...
Kh5 {[%clk 0:01:21.9]} 35. Bg7 {[%clk 0:01:35]} 35... Bb6 {[%clk 0:01:20]} 36.
Ke2 {[%clk 0:01:33.9]} 36... Bc5 {[%clk 0:01:14.4]} 37. a4 {[%clk 0:01:33.9]}
37... Kg6 {[%clk 0:01:11.9]} 38. Be5 {[%clk 0:01:33.4]} 38... Bf8 {[%clk
0:01:08.7]} 39. f4 {[%clk 0:01:31.7]} 39... g4 {[%clk 0:01:06.6]} 40. f3 {[%clk
0:01:17.6]} 40... gxh3 {[%clk 0:00:35]} 41. Kf2 {[%clk 0:01:17.9]} 41... Bg7
{[%clk 0:00:26]} 42. Bd6 {[%clk 0:01:01.5]} 42... Kf7 {[%clk 0:00:20.3]} 43. Kg3
{[%clk 0:01:00.9]} 43... Ke6 {[%clk 0:00:21.8]} 44. Bc5 {[%clk 0:00:58.4]} 44...
Bf6 {[%clk 0:00:20.6]} 45. Kxh3 {[%clk 0:00:59.3]} 45... b5 {[%clk 0:00:20.9]}
46. axb5 {[%clk 0:00:59.5]} 46... cxb5 {[%clk 0:00:21.4]} 47. Kg3 {[%clk
0:00:57]} 47... bxc4 {[%clk 0:00:21.4]} 48. bxc4 {[%clk 0:00:57.6]} 48... a5
{[%clk 0:00:22.9]} 49. Kf2 {[%clk 0:00:56.5]} 49... a4 {[%clk 0:00:23.4]} 50.
Ba3 {[%clk 0:00:56.5]} 50... Be7 {[%clk 0:00:23.8]} 51. Bb2 {[%clk 0:00:54.9]}
51... a3 {[%clk 0:00:24.1]} 0-1